[Event "Titled Tuesday Blitz November 01 Late 2022"]
[White "Roque Sola, Gisela"]
[Black "Jaferian, Koosha"]
[WhiteFideId "5120241"]
[BlackFideId "12507440"]
[WhiteElo "1961"]
[BlackElo "2127"]
[Result "0-1"]
[Round "02"]
[TimeControl "180+1"]
[Date "2022.11.02"]
[WhiteClock "0:00:08"]
[BlackClock "0:00:06"]

1. e4 {[%clk 0:03:00]}  c5 {[%clk 0:02:57]} 2. Nf3 {[%clk 0:03:01]}  d6 {[%clk 0:02:57]} 3. d4 {[%clk 0:03:01]}  cxd4 {[%clk 0:02:58]} 4. Nxd4 {[%clk 0:03:02]}  Nf6 {[%clk 0:02:59]} 5. Nc3 {[%clk 0:03:01]}  a6 {[%clk 0:03:00]} 6. Be2 {[%clk 0:02:57]}  e5 {[%clk 0:03:00]} 7. Nb3 {[%clk 0:02:57]}  Be6 {[%clk 0:02:59]} 8. O-O {[%clk 0:02:52]}  Be7 {[%clk 0:02:59]} 9. Bf3 {[%clk 0:02:51]}  O-O {[%clk 0:02:59]} 10. a4 {[%clk 0:02:50]}  Nc6 {[%clk 0:02:56]} 11. Be3 {[%clk 0:02:50]}  Rc8 {[%clk 0:02:56]} 12. Re1 {[%clk 0:02:46]}  Na5 {[%clk 0:02:53]} 13. Nd2 {[%clk 0:02:41]}  d5 {[%clk 0:02:47]} 14. exd5 {[%clk 0:02:39]}  Nxd5 {[%clk 0:02:47]} 15. Nxd5 {[%clk 0:02:36]}  Bxd5 {[%clk 0:02:48]} 16. c3 {[%clk 0:01:54]}  Nc6 {[%clk 0:02:34]} 17. Bxd5 {[%clk 0:01:44]}  Qxd5 {[%clk 0:02:29]} 18. Qf3 {[%clk 0:01:45]}  Qe6 {[%clk 0:02:18]} 19. h3 {[%clk 0:01:20]}  f5 {[%clk 0:02:18]} 20. Rad1 {[%clk 0:01:14]}  e4 {[%clk 0:02:18]} 21. Qg3 {[%clk 0:01:11]}  Bf6 {[%clk 0:02:06]} 22. Bc5 {[%clk 0:01:04]}  Rfd8 {[%clk 0:02:04]} 23. Bb6 {[%clk 0:00:59]}  Rd7 {[%clk 0:01:58]} 24. Nf1 {[%clk 0:00:56]}  Ne5 {[%clk 0:01:42]} 25. Bd4 {[%clk 0:00:54]}  Rcd8 {[%clk 0:01:35]} 26. Ne3 {[%clk 0:00:54]}  Ng6 {[%clk 0:01:31]} 27. Bxf6 {[%clk 0:00:49]}  Qxf6 {[%clk 0:01:32]} 28. Rxd7 {[%clk 0:00:48]}  Rxd7 {[%clk 0:01:33]} 29. Qb8+ {[%clk 0:00:48]}  Nf8 {[%clk 0:01:30]} 30. Rd1 {[%clk 0:00:47]}  Rxd1+ {[%clk 0:01:18]} 31. Nxd1 {[%clk 0:00:48]}  Qe7 {[%clk 0:01:16]} 32. Ne3 {[%clk 0:00:47]}  Qd7 {[%clk 0:01:01]} 33. g3 {[%clk 0:00:43]}  Kf7 {[%clk 0:00:56]} 34. Qe5 {[%clk 0:00:39]}  g6 {[%clk 0:00:50]} 35. Kg2 {[%clk 0:00:39]}  Qe6 {[%clk 0:00:47]} 36. Qc7+ {[%clk 0:00:38]}  Qe7 {[%clk 0:00:47]} 37. Qc4+ {[%clk 0:00:37]}  Kg7 {[%clk 0:00:43]} 38. Qd4+ {[%clk 0:00:36]}  Qf6 {[%clk 0:00:43]} 39. Qd5 {[%clk 0:00:34]}  Qf7 {[%clk 0:00:41]} 40. Qd4+ {[%clk 0:00:33]}  Qf6 {[%clk 0:00:35]} 41. Qd5 {[%clk 0:00:32]}  Qe7 {[%clk 0:00:32]} 42. Nc4 {[%clk 0:00:30]}  Ne6 {[%clk 0:00:28]} 43. Qe5+ {[%clk 0:00:28]}  Kh6 {[%clk 0:00:25]} 44. Nd6 {[%clk 0:00:26]}  Qd7 {[%clk 0:00:19]} 45. c4 {[%clk 0:00:23]}  Ng5 {[%clk 0:00:15]} 46. Qf4 {[%clk 0:00:22]}  Kg7 {[%clk 0:00:15]} 47. Qxg5 {[%clk 0:00:21]}  Qxd6 {[%clk 0:00:15]} 48. Qe3 {[%clk 0:00:21]}  Kf6 {[%clk 0:00:13]} 49. Qc3+ {[%clk 0:00:19]}  Qe5 {[%clk 0:00:13]} 50. Qb4 {[%clk 0:00:18]}  Qe7 {[%clk 0:00:12]} 51. Qb6+ {[%clk 0:00:17]}  Kf7 {[%clk 0:00:11]} 52. c5 {[%clk 0:00:17]}  Qd7 {[%clk 0:00:11]} 53. Qb3+ {[%clk 0:00:16]}  Ke7 {[%clk 0:00:11]} 54. Qc4 {[%clk 0:00:17]}  Kd8 {[%clk 0:00:08]} 55. b4 {[%clk 0:00:16]}  Kc7 {[%clk 0:00:09]} 56. b5 {[%clk 0:00:15]}  axb5 {[%clk 0:00:09]} 57. axb5 {[%clk 0:00:15]}  Qe7 {[%clk 0:00:10]} 58. b6+ {[%clk 0:00:15]}  Kc6 {[%clk 0:00:07]} 59. Qd4 {[%clk 0:00:15]}  Qxc5 {[%clk 0:00:07]} 60. Qd8 {[%clk 0:00:14]}  Qxb6 {[%clk 0:00:06]} 61. Qf6+ {[%clk 0:00:13]}  Kb5 {[%clk 0:00:07]} 62. Qb2+ {[%clk 0:00:13]}  Ka6 {[%clk 0:00:06]} 63. Qa3+ {[%clk 0:00:13]}  Qa5 {[%clk 0:00:07]} 64. Qd6+ {[%clk 0:00:13]}  b6 {[%clk 0:00:07]} 65. Qc7 {[%clk 0:00:12]}  Qc5 {[%clk 0:00:05]} 66. Qxh7 {[%clk 0:00:11]}  Qc6 {[%clk 0:00:06]} 67. Qg8 {[%clk 0:00:10]}  e3+ {[%clk 0:00:06]} 68. Kf1 {[%clk 0:00:08]}  Qc1+ {[%clk 0:00:06]} 69. Ke2 {[%clk 0:00:08]}  Qd2+ {[%clk 0:00:06]} 70. Kf3 {[%clk 0:00:08]}  Qxf2# {[%clk 0:00:06]} 0-1


[Site "https://www.chess.com"]

[Event "Titled Tuesday Blitz November 01 Late 2022"]
[White "Roque Sola, Jose Luis"]
[Black "Heinemann, Josefine"]
[WhiteFideId "5120390"]
[BlackFideId "12900460"]
[WhiteElo "2117"]
[BlackElo "2300"]
[Result "1-0"]
[Round "02"]
[TimeControl "180+1"]
[Date "2022.11.02"]
[WhiteClock "0:00:14"]
[BlackClock "0:00:14"]

1. c4 {[%clk 0:03:00]}  e5 {[%clk 0:02:58]} 2. Nc3 {[%clk 0:03:00]}  Nf6 {[%clk 0:02:57]} 3. Nf3 {[%clk 0:03:00]}  e4 {[%clk 0:02:55]} 4. Ng5 {[%clk 0:03:00]}  d5 {[%clk 0:02:45]} 5. cxd5 {[%clk 0:02:57]}  Bf5 {[%clk 0:02:44]} 6. Ngxe4 {[%clk 0:02:32]}  Nxe4 {[%clk 0:02:37]} 7. Nxe4 {[%clk 0:02:32]}  Qxd5 {[%clk 0:02:37]} 8. Nc3 {[%clk 0:02:31]}  Qe6 {[%clk 0:02:34]} 9. d3 {[%clk 0:02:16]}  Nc6 {[%clk 0:02:33]} 10. g3 {[%clk 0:02:13]}  Bb4 {[%clk 0:02:13]} 11. Bg2 {[%clk 0:02:06]}  O-O {[%clk 0:02:13]} 12. O-O {[%clk 0:02:06]}  Rad8 {[%clk 0:02:11]} 13. Bd2 {[%clk 0:01:37]}  Nd4 {[%clk 0:02:09]} 14. Be3 {[%clk 0:01:11]}  Bxc3 {[%clk 0:01:50]} 15. bxc3 {[%clk 0:01:10]}  Nxe2+ {[%clk 0:01:50]} 16. Qxe2 {[%clk 0:01:05]}  Bxd3 {[%clk 0:01:50]} 17. Qf3 {[%clk 0:01:05]}  Bxf1 {[%clk 0:01:50]} 18. Rxf1 {[%clk 0:01:05]}  b6 {[%clk 0:01:50]} 19. a4 {[%clk 0:01:00]}  Qb3 {[%clk 0:01:49]} 20. Qc6 {[%clk 0:00:56]}  Rd3 {[%clk 0:01:40]} 21. Qxc7 {[%clk 0:00:49]}  Qxa4 {[%clk 0:01:40]} 22. c4 {[%clk 0:00:45]}  Rd7 {[%clk 0:01:14]} 23. Qf4 {[%clk 0:00:43]}  Qb4 {[%clk 0:01:01]} 24. Qg4 {[%clk 0:00:42]}  Rd6 {[%clk 0:00:35]} 25. Be4 {[%clk 0:00:35]}  a5 {[%clk 0:00:22]} 26. Qh4 {[%clk 0:00:24]}  h6 {[%clk 0:00:19]} 27. Qg4 {[%clk 0:00:23]}  a4 {[%clk 0:00:17]} 28. Bd5 {[%clk 0:00:21]}  a3 {[%clk 0:00:15]} 29. Bd4 {[%clk 0:00:16]}  Rg6 {[%clk 0:00:14]} 30. Qxg6 {[%clk 0:00:14]} 1-0


[Site "https://www.chess.com"]

[Event "Titled Tuesday Blitz November 01 Late 2022"]
[White "Rustemov, Alexander"]
[Black "Thomforde-Toates, Noah"]
[WhiteFideId "4119002"]
[BlackFideId "30951992"]
[WhiteElo "2920"]
[BlackElo "2627"]
[Result "1-0"]
[Round "02"]
[TimeControl "180+1"]
[Date "2022.11.01"]
[WhiteClock "0:00:10"]
[BlackClock "0:00:12"]

1. d4 {[%clk 0:03:00]}  Nf6 {[%clk 0:02:59]} 2. c4 {[%clk 0:03:01]}  g6 {[%clk 0:03:00]} 3. Nf3 {[%clk 0:03:01]}  Bg7 {[%clk 0:03:00]} 4. g3 {[%clk 0:03:02]}  O-O {[%clk 0:03:00]} 5. Bg2 {[%clk 0:03:03]}  d6 {[%clk 0:03:01]} 6. Nc3 {[%clk 0:03:03]}  Nc6 {[%clk 0:03:01]} 7. O-O {[%clk 0:03:04]}  e5 {[%clk 0:03:02]} 8. h3 {[%clk 0:03:03]}  exd4 {[%clk 0:02:57]} 9. Nxd4 {[%clk 0:03:03]}  Bd7 {[%clk 0:02:57]} 10. Be3 {[%clk 0:02:57]}  Re8 {[%clk 0:02:57]} 11. Qd2 {[%clk 0:02:57]}  Qc8 {[%clk 0:02:51]} 12. Kh2 {[%clk 0:02:55]}  h5 {[%clk 0:02:39]} 13. Nf3 {[%clk 0:02:44]}  Bf5 {[%clk 0:02:31]} 14. Rac1 {[%clk 0:02:42]}  Ne4 {[%clk 0:02:29]} 15. Nxe4 {[%clk 0:02:41]}  Bxe4 {[%clk 0:02:30]} 16. Rfd1 {[%clk 0:02:33]}  b6 {[%clk 0:02:24]} 17. h4 {[%clk 0:02:25]}  Qb7 {[%clk 0:02:23]} 18. Ne1 {[%clk 0:02:16]}  Bxg2 {[%clk 0:02:23]} 19. Nxg2 {[%clk 0:02:17]}  Ne5 {[%clk 0:02:22]} 20. Kg1 {[%clk 0:02:11]}  Ng4 {[%clk 0:02:16]} 21. Bg5 {[%clk 0:02:06]}  Qc6 {[%clk 0:01:51]} 22. f3 {[%clk 0:02:05]}  Qc5+ {[%clk 0:01:47]} 23. e3 {[%clk 0:02:01]}  Ne5 {[%clk 0:01:44]} 24. Kf2 {[%clk 0:01:53]}  a5 {[%clk 0:01:20]} 25. b3 {[%clk 0:01:51]}  a4 {[%clk 0:01:17]} 26. b4 {[%clk 0:01:43]}  Qc6 {[%clk 0:01:15]} 27. Qd5 {[%clk 0:01:42]}  Qd7 {[%clk 0:01:14]} 28. Bf4 {[%clk 0:01:34]}  Qh3 {[%clk 0:01:05]} 29. Rh1 {[%clk 0:01:28]}  Qf5 {[%clk 0:01:00]} 30. e4 {[%clk 0:01:27]}  Qd7 {[%clk 0:00:57]} 31. Rhd1 {[%clk 0:01:24]}  a3 {[%clk 0:00:52]} 32. Ne3 {[%clk 0:01:15]}  Qa4 {[%clk 0:00:49]} 33. Qd2 {[%clk 0:01:14]}  Qd7 {[%clk 0:00:47]} 34. Kg2 {[%clk 0:01:13]}  Qe6 {[%clk 0:00:40]} 35. Nd5 {[%clk 0:01:13]}  Rac8 {[%clk 0:00:40]} 36. Rc3 {[%clk 0:01:07]}  f5 {[%clk 0:00:39]} 37. Re1 {[%clk 0:01:05]}  fxe4 {[%clk 0:00:39]} 38. Rxe4 {[%clk 0:01:05]}  Qf5 {[%clk 0:00:39]} 39. Rce3 {[%clk 0:01:02]}  Kh7 {[%clk 0:00:39]} 40. Bxe5 {[%clk 0:00:58]}  Rxe5 {[%clk 0:00:38]} 41. Qe2 {[%clk 0:00:53]}  Rce8 {[%clk 0:00:36]} 42. Nxc7 {[%clk 0:00:47]}  Rf8 {[%clk 0:00:36]} 43. Nd5 {[%clk 0:00:44]}  Rxe4 {[%clk 0:00:36]} 44. Rxe4 {[%clk 0:00:42]}  Be5 {[%clk 0:00:36]} 45. b5 {[%clk 0:00:40]}  Bg7 {[%clk 0:00:34]} 46. Nf4 {[%clk 0:00:30]}  Be5 {[%clk 0:00:34]} 47. Nh3 {[%clk 0:00:29]}  Rc8 {[%clk 0:00:31]} 48. Ng5+ {[%clk 0:00:28]}  Kh6 {[%clk 0:00:31]} 49. f4 {[%clk 0:00:28]}  Bg7 {[%clk 0:00:30]} 50. Re8 {[%clk 0:00:19]}  Rc7 {[%clk 0:00:25]} 51. Qe4 {[%clk 0:00:16]}  Qxe4+ {[%clk 0:00:24]} 52. Rxe4 {[%clk 0:00:16]}  d5 {[%clk 0:00:24]} 53. cxd5 {[%clk 0:00:16]}  Rc2+ {[%clk 0:00:24]} 54. Kf3 {[%clk 0:00:16]}  Rxa2 {[%clk 0:00:25]} 55. Nf7+ {[%clk 0:00:15]}  Kh7 {[%clk 0:00:25]} 56. Ra4 {[%clk 0:00:15]}  Rd2 {[%clk 0:00:21]} 57. Rxa3 {[%clk 0:00:14]}  Rxd5 {[%clk 0:00:21]} 58. Rb3 {[%clk 0:00:14]}  Rc5 {[%clk 0:00:20]} 59. Ke4 {[%clk 0:00:13]}  Rc4+ {[%clk 0:00:20]} 60. Kd5 {[%clk 0:00:13]}  Rc5+ {[%clk 0:00:21]} 61. Ke6 {[%clk 0:00:14]}  Bf8 {[%clk 0:00:21]} 62. Ne5 {[%clk 0:00:14]}  Kg7 {[%clk 0:00:20]} 63. Nd7 {[%clk 0:00:14]}  Rc1 {[%clk 0:00:20]} 64. Nxf8 {[%clk 0:00:12]}  Kxf8 {[%clk 0:00:20]} 65. Kf6 {[%clk 0:00:11]}  Ke8 {[%clk 0:00:20]} 66. Kxg6 {[%clk 0:00:12]}  Ke7 {[%clk 0:00:21]} 67. Kxh5 {[%clk 0:00:12]}  Kf6 {[%clk 0:00:21]} 68. g4 {[%clk 0:00:12]}  Rc5+ {[%clk 0:00:22]} 69. g5+ {[%clk 0:00:13]}  Kf5 {[%clk 0:00:23]} 70. g6 {[%clk 0:00:11]}  Kf6+ {[%clk 0:00:15]} 71. Kh6 {[%clk 0:00:11]}  Rc7 {[%clk 0:00:12]} 72. h5 {[%clk 0:00:11]}  Rg7 {[%clk 0:00:11]} 73. Rc3 {[%clk 0:00:10]}  Rg8 {[%clk 0:00:11]} 74. Rc6+ {[%clk 0:00:10]}  Kf5 {[%clk 0:00:12]} 75. Kh7 {[%clk 0:00:10]}  Kxf4 {[%clk 0:00:12]} 76. Kxg8 {[%clk 0:00:10]} 1-0


[Site "https://www.chess.com"]

[Event "Titled Tuesday Blitz November 01 Late 2022"]
[White "Sai Krishna G V"]
[Black "Rosenberg, Evan S"]
[WhiteFideId "5028280"]
[BlackFideId "2019299"]
[WhiteElo "2359"]
[BlackElo "2384"]
[Result "1-0"]
[Round "02"]
[TimeControl "180+1"]
[Date "2022.11.02"]
[WhiteClock "0:01:51"]
[BlackClock "0:00:46"]

1. Nf3 {[%clk 0:03:00]}  d5 {[%clk 0:02:59]} 2. g3 {[%clk 0:03:01]}  Nd7 {[%clk 0:02:59]} 3. Bg2 {[%clk 0:03:02]}  e5 {[%clk 0:02:59]} 4. d3 {[%clk 0:03:02]}  Ngf6 {[%clk 0:02:58]} 5. O-O {[%clk 0:03:03]}  Bd6 {[%clk 0:02:58]} 6. e4 {[%clk 0:03:03]}  dxe4 {[%clk 0:02:53]} 7. dxe4 {[%clk 0:03:04]}  Nxe4 {[%clk 0:02:47]} 8. Nxe5 {[%clk 0:02:29]}  Nxe5 {[%clk 0:02:43]} 9. Bxe4 {[%clk 0:02:28]}  O-O {[%clk 0:02:40]} 10. Nc3 {[%clk 0:02:19]}  Bg4 {[%clk 0:02:29]} 11. f3 {[%clk 0:02:17]}  Bh3 {[%clk 0:02:28]} 12. Re1 {[%clk 0:02:17]}  Bc5+ {[%clk 0:02:23]} 13. Be3 {[%clk 0:02:17]}  Bxe3+ {[%clk 0:02:12]} 14. Rxe3 {[%clk 0:02:18]}  Qg5 {[%clk 0:02:12]} 15. f4 {[%clk 0:02:11]}  Qh6 {[%clk 0:02:12]} 16. Bxh7+ {[%clk 0:02:07]}  Kxh7 {[%clk 0:02:01]} 17. Rxe5 {[%clk 0:02:08]}  Qb6+ {[%clk 0:02:01]} 18. Kh1 {[%clk 0:02:05]}  g6 {[%clk 0:01:49]} 19. Nd5 {[%clk 0:01:51]}  Qxb2 {[%clk 0:01:21]} 20. Rb1 {[%clk 0:01:50]}  Qxa2 {[%clk 0:01:05]} 21. Rh5+ {[%clk 0:01:50]}  gxh5 {[%clk 0:00:53]} 22. Qxh5+ {[%clk 0:01:51]}  Kg7 {[%clk 0:00:54]} 23. Qg5+ {[%clk 0:01:51]}  Kh7 {[%clk 0:00:47]} 24. Nf6+ {[%clk 0:01:50]}  Kh8 {[%clk 0:00:46]} 25. Qh6# {[%clk 0:01:51]} 1-0


[Site "https://www.chess.com"]

[Event "Titled Tuesday Blitz November 01 Late 2022"]
[White "Sarana, Alexey"]
[Black "Aggelis, Nikolaos"]
[WhiteFideId "24133795"]
[BlackFideId "4213220"]
[WhiteElo "2689"]
[BlackElo "2187"]
[Result "1-0"]
[Round "02"]
[TimeControl "180+1"]
[Date "2022.11.02"]
[WhiteClock "0:00:10"]
[BlackClock "0:00:13"]

1. c4 {[%clk 0:03:00]}  c5 {[%clk 0:02:53]} 2. Nf3 {[%clk 0:03:00]}  Nf6 {[%clk 0:02:53]} 3. Nc3 {[%clk 0:02:59]}  d5 {[%clk 0:02:51]} 4. cxd5 {[%clk 0:02:58]}  Nxd5 {[%clk 0:02:52]} 5. g3 {[%clk 0:02:58]}  g6 {[%clk 0:02:52]} 6. Bg2 {[%clk 0:02:52]}  Nxc3 {[%clk 0:02:51]} 7. bxc3 {[%clk 0:02:51]}  Bg7 {[%clk 0:02:51]} 8. h4 {[%clk 0:02:49]}  h6 {[%clk 0:02:40]} 9. d4 {[%clk 0:02:39]}  O-O {[%clk 0:02:39]} 10. Be3 {[%clk 0:02:35]}  Nc6 {[%clk 0:02:36]} 11. Qd2 {[%clk 0:02:35]}  h5 {[%clk 0:02:34]} 12. d5 {[%clk 0:02:34]}  Ne5 {[%clk 0:02:16]} 13. Nxe5 {[%clk 0:02:34]}  Bxe5 {[%clk 0:02:17]} 14. Bxc5 {[%clk 0:02:34]}  Qa5 {[%clk 0:02:04]} 15. Bd4 {[%clk 0:02:31]}  Bxd4 {[%clk 0:02:02]} 16. cxd4 {[%clk 0:02:32]}  Qa6 {[%clk 0:01:49]} 17. O-O {[%clk 0:02:31]}  Bg4 {[%clk 0:01:49]} 18. e4 {[%clk 0:02:30]}  Rac8 {[%clk 0:01:44]} 19. e5 {[%clk 0:02:31]}  b6 {[%clk 0:01:42]} 20. Be4 {[%clk 0:02:27]}  Qe2 {[%clk 0:01:31]} 21. Qxe2 {[%clk 0:02:24]}  Bxe2 {[%clk 0:01:32]} 22. Rfc1 {[%clk 0:02:24]}  Bc4 {[%clk 0:01:23]} 23. a4 {[%clk 0:02:24]}  Rfd8 {[%clk 0:01:19]} 24. Rc3 {[%clk 0:02:23]}  a6 {[%clk 0:01:14]} 25. f4 {[%clk 0:02:10]}  b5 {[%clk 0:01:09]} 26. axb5 {[%clk 0:02:10]}  axb5 {[%clk 0:01:10]} 27. Ra7 {[%clk 0:02:09]}  Kf8 {[%clk 0:01:08]} 28. Kf2 {[%clk 0:01:58]}  Rb8 {[%clk 0:01:07]} 29. Ke3 {[%clk 0:01:50]}  Bxd5 {[%clk 0:01:05]} 30. Bxd5 {[%clk 0:01:51]}  Rxd5 {[%clk 0:01:05]} 31. Rcc7 {[%clk 0:01:52]}  Re8 {[%clk 0:01:03]} 32. Ke4 {[%clk 0:01:50]}  Rdd8 {[%clk 0:01:02]} 33. d5 {[%clk 0:01:46]}  b4 {[%clk 0:01:02]} 34. d6 {[%clk 0:01:34]}  Rb8 {[%clk 0:00:58]} 35. dxe7+ {[%clk 0:00:35]}  Kg8 {[%clk 0:00:54]} 36. Rab7 {[%clk 0:00:34]}  Kg7 {[%clk 0:00:36]} 37. Rxb8 {[%clk 0:00:14]}  Rxb8 {[%clk 0:00:37]} 38. Kd5 {[%clk 0:00:11]}  b3 {[%clk 0:00:36]} 39. Rc1 {[%clk 0:00:11]}  f5 {[%clk 0:00:23]} 40. Ke6 {[%clk 0:00:10]}  Rb6+ {[%clk 0:00:16]} 41. Kd7 {[%clk 0:00:10]}  Rb7+ {[%clk 0:00:16]} 42. Kd8 {[%clk 0:00:10]}  Rb8+ {[%clk 0:00:16]} 43. Kc7 {[%clk 0:00:09]}  Re8 {[%clk 0:00:13]} 44. Kd7 {[%clk 0:00:09]}  Kf7 {[%clk 0:00:13]} 45. e6+ {[%clk 0:00:10]} 1-0


[Site "https://www.chess.com"]

[Event "Titled Tuesday Blitz November 01 Late 2022"]
[White "Saucey, Michel"]
[Black "Martinez Molina, Carlos Alberto"]
[WhiteFideId "601845"]
[BlackFideId "5122708"]
[WhiteElo "2253"]
[BlackElo "2212"]
[Result "0-1"]
[Round "02"]
[TimeControl "180+1"]
[Date "2022.11.02"]
[WhiteClock "0:00:01"]
[BlackClock "0:00:04"]

1. d4 {[%clk 0:03:00]}  Nf6 {[%clk 0:02:59]} 2. c4 {[%clk 0:03:00]}  c5 {[%clk 0:02:56]} 3. d5 {[%clk 0:02:58]}  e6 {[%clk 0:02:55]} 4. Nc3 {[%clk 0:02:57]}  exd5 {[%clk 0:02:55]} 5. cxd5 {[%clk 0:02:56]}  d6 {[%clk 0:02:55]} 6. Nf3 {[%clk 0:02:57]}  g6 {[%clk 0:02:55]} 7. Nd2 {[%clk 0:02:54]}  Bg7 {[%clk 0:02:45]} 8. e4 {[%clk 0:02:54]}  O-O {[%clk 0:02:43]} 9. Be2 {[%clk 0:02:53]}  Re8 {[%clk 0:02:37]} 10. O-O {[%clk 0:02:52]}  Na6 {[%clk 0:02:18]} 11. h3 {[%clk 0:02:50]}  Nc7 {[%clk 0:02:15]} 12. a4 {[%clk 0:02:49]}  b6 {[%clk 0:02:15]} 13. Re1 {[%clk 0:02:48]}  Ba6 {[%clk 0:02:14]} 14. Bb5 {[%clk 0:02:28]}  Bxb5 {[%clk 0:02:06]} 15. axb5 {[%clk 0:02:28]}  Qe7 {[%clk 0:02:01]} 16. Nc4 {[%clk 0:02:10]}  Qd7 {[%clk 0:01:53]} 17. Bf4 {[%clk 0:01:51]}  Nh5 {[%clk 0:01:50]} 18. Bh2 {[%clk 0:01:32]}  Bf8 {[%clk 0:01:10]} 19. Qb3 {[%clk 0:00:52]}  Qd8 {[%clk 0:00:28]} 20. Rad1 {[%clk 0:00:28]}  h6 {[%clk 0:00:28]} 21. e5 {[%clk 0:00:28]}  dxe5 {[%clk 0:00:23]} 22. Nxe5 {[%clk 0:00:23]}  Qh4 {[%clk 0:00:14]} 23. d6 {[%clk 0:00:20]}  Ne6 {[%clk 0:00:13]} 24. Nxg6 {[%clk 0:00:19]}  fxg6 {[%clk 0:00:08]} 25. Rxe6 {[%clk 0:00:18]}  Kh7 {[%clk 0:00:08]} 26. Rde1 {[%clk 0:00:15]}  Rxe6 {[%clk 0:00:04]} 27. Rxe6 {[%clk 0:00:12]}  Bg7 {[%clk 0:00:05]} 28. Qc2 {[%clk 0:00:12]}  Qg5 {[%clk 0:00:05]} 29. Ne4 {[%clk 0:00:10]}  Qf5 {[%clk 0:00:05]} 30. Re7 {[%clk 0:00:08]}  Kh8 {[%clk 0:00:04]} 31. Qd2 {[%clk 0:00:05]}  Rd8 {[%clk 0:00:03]} 32. Bg3 {[%clk 0:00:01]}  Nf6 {[%clk 0:00:04]} 0-1


[Site "https://www.chess.com"]

[Event "Titled Tuesday Blitz November 01 Late 2022"]
[White "Schrik, Rachid"]
[Black "Tayar, Jonathan"]
[WhiteFideId "1009818"]
[BlackFideId "2606534"]
[WhiteElo "2098"]
[BlackElo "2406"]
[Result "1/2-1/2"]
[Round "02"]
[TimeControl "180+1"]
[Date "2022.11.02"]
[WhiteClock "0:00:17"]
[BlackClock "0:00:21"]

1. d4 {[%clk 0:02:59]}  Nf6 {[%clk 0:02:58]} 2. c4 {[%clk 0:03:00]}  g6 {[%clk 0:02:57]} 3. Nc3 {[%clk 0:03:00]}  Bg7 {[%clk 0:02:57]} 4. e4 {[%clk 0:03:00]}  d6 {[%clk 0:02:57]} 5. f3 {[%clk 0:03:01]}  O-O {[%clk 0:02:58]} 6. Bg5 {[%clk 0:03:02]}  c5 {[%clk 0:02:54]} 7. d5 {[%clk 0:03:02]}  e6 {[%clk 0:02:53]} 8. Qd2 {[%clk 0:03:02]}  exd5 {[%clk 0:02:52]} 9. cxd5 {[%clk 0:03:02]}  a6 {[%clk 0:02:48]} 10. a4 {[%clk 0:03:02]}  Re8 {[%clk 0:02:31]} 11. Nge2 {[%clk 0:03:02]}  h6 {[%clk 0:02:31]} 12. Bxh6 {[%clk 0:02:50]}  Nxe4 {[%clk 0:02:31]} 13. Nxe4 {[%clk 0:02:50]}  Qh4+ {[%clk 0:02:30]} 14. g3 {[%clk 0:02:51]}  Qxh6 {[%clk 0:02:30]} 15. Qxh6 {[%clk 0:02:51]}  Bxh6 {[%clk 0:02:31]} 16. Nf6+ {[%clk 0:02:51]}  Kf8 {[%clk 0:02:31]} 17. Nxe8 {[%clk 0:02:51]}  Kxe8 {[%clk 0:02:32]} 18. Nc3 {[%clk 0:02:30]}  f5 {[%clk 0:02:30]} 19. f4 {[%clk 0:02:24]}  Bg7 {[%clk 0:02:29]} 20. Bg2 {[%clk 0:02:18]}  Kf7 {[%clk 0:02:23]} 21. O-O {[%clk 0:02:16]}  Nd7 {[%clk 0:02:24]} 22. Rfe1 {[%clk 0:02:16]}  Bd4+ {[%clk 0:02:23]} 23. Kh1 {[%clk 0:02:16]}  Nf6 {[%clk 0:02:23]} 24. Bf3 {[%clk 0:02:02]}  Bd7 {[%clk 0:02:16]} 25. Re2 {[%clk 0:02:01]}  Rb8 {[%clk 0:01:58]} 26. a5 {[%clk 0:01:57]}  b5 {[%clk 0:01:56]} 27. axb6 {[%clk 0:01:54]}  Rxb6 {[%clk 0:01:57]} 28. Ra2 {[%clk 0:01:09]}  Rb3 {[%clk 0:01:47]} 29. Rxa6 {[%clk 0:01:00]}  Bxc3 {[%clk 0:01:47]} 30. bxc3 {[%clk 0:01:00]}  Rxc3 {[%clk 0:01:47]} 31. Rxd6 {[%clk 0:00:59]}  Rxf3 {[%clk 0:01:46]} 32. Rc2 {[%clk 0:00:46]}  Ke7 {[%clk 0:01:42]} 33. Ra6 {[%clk 0:00:40]}  Bb5 {[%clk 0:01:31]} 34. Re6+ {[%clk 0:00:37]}  Kf7 {[%clk 0:01:27]} 35. Rxc5 {[%clk 0:00:37]}  Rf1+ {[%clk 0:00:41]} 36. Kg2 {[%clk 0:00:37]}  Rb1 {[%clk 0:00:42]} 37. Rc7+ {[%clk 0:00:36]}  Nd7 {[%clk 0:00:42]} 38. Rd6 {[%clk 0:00:31]}  Ke7 {[%clk 0:00:38]} 39. Rxg6 {[%clk 0:00:28]}  Kd8 {[%clk 0:00:39]} 40. Ra7 {[%clk 0:00:24]}  Rb2+ {[%clk 0:00:37]} 41. Kf3 {[%clk 0:00:20]}  Rb3+ {[%clk 0:00:35]} 42. Kf2 {[%clk 0:00:20]}  Rb2+ {[%clk 0:00:35]} 43. Kf3 {[%clk 0:00:20]}  Ke8 {[%clk 0:00:21]} 44. Re6+ {[%clk 0:00:18]}  Kd8 {[%clk 0:00:21]} 45. Rg6 {[%clk 0:00:17]} 1/2-1/2


[Site "https://www.chess.com"]